fUST/lending_fUST_20250723
["ID","MTS","AMOUNT","RATE_DAILY","PERIOD"]
[374263232,1753260645627,-777.7,0.00020821,2]
[374263234,1753260645637,-460.0,0.00020821,2]
[374263236,1753260645647,-460.0,0.00020821,2]
[374263238,1753260645656,-460.0,0.00020821,2]
[374263240,1753260645667,-460.0,0.00020821,2]
[374263242,1753260645677,-1219.44,0.00020821,2]
[374263244,1753260645687,-556.0,0.00020821,2]
[374263246,1753260645696,-474.73,0.00020821,2]
[374263248,1753260645706,-151.0,0.00020821,2]
[374263250,1753260645715,-1829.6,0.00020821,2]
[374263252,1753260645725,-460.0,0.00020821,2]
[374263254,1753260645734,-151.0,0.00020821,2]
[374263257,1753260645744,-3282.15,0.00020821,2]
[374263259,1753260645754,-151.0,0.00020821,2]
[374263261,1753260645763,-460.0,0.00020821,2]
[374263263,1753260645773,-151.0,0.00020821,2]
[374263265,1753260645782,-460.0,0.00020821,2]
[374263267,1753260645792,-460.0,0.00020821,2]
[374263269,1753260645802,-564.16,0.00020821,2]
[374263271,1753260645812,-460.0,0.00020821,2]
[374263274,1753260645822,-460.0,0.00020821,2]
[374263277,1753260645831,-2621.57,0.00020821,2]
[374263280,1753260645840,-209.68572585,0.00020821,2]
[374263283,1753260645849,-460.0,0.00020821,2]
[374263286,1753260645859,-151.0,0.00020821,2]
[374263288,1753260645868,-460.0,0.00020821,2]
[374263290,1753260645878,-460.0,0.00020821,2]
[374263292,1753260645887,-1643.25,0.00020821,2]
[374263294,1753260645897,-151.0,0.00020821,2]
[374263296,1753260645906,-1352.51,0.00020821,2]
[374263298,1753260645916,-1446.52,0.00020821,2]
[374263300,1753260645925,-489.77,0.00020821,2]
[374263302,1753260645934,-460.0,0.00020821,2]
[374263304,1753260645943,-460.0,0.00020821,2]
[374263306,1753260645952,-460.0,0.00020821,2]
[374263308,1753260645963,-644.71,0.00020821,2]
[374263311,1753260645972,-460.0,0.00020821,2]
[374263313,1753260645981,-1063.59,0.00020821,2]
[374263315,1753260645991,-1406.38,0.00020821,2]
[374263317,1753260646000,-460.0,0.00020821,2]
[374263319,1753260646010,-460.0,0.00020821,2]
[374263321,1753260646019,-460.0,0.00020821,2]
[374263323,1753260646029,-1061.1,0.00020821,2]
[374263325,1753260646039,-460.0,0.00020821,2]
[374263327,1753260646049,-1928.69,0.00020821,2]
[374263329,1753260646059,-740.5,0.00020821,2]
[374263331,1753260646070,-460.0,0.00020821,2]
[374263333,1753260646080,-460.0,0.00020821,2]
[374263335,1753260646090,-471.12,0.00020821,2]
[374263337,1753260646100,-2139.67,0.00020821,2]
[374263339,1753260646109,-460.0,0.00020821,2]
[374263341,1753260646119,-151.0,0.00020821,2]
[374263343,1753260646129,-151.0,0.00020821,2]
[374263345,1753260646139,-4820.06,0.00020821,2]
[374263347,1753260646148,-375.65423193,0.00020821,2]
[374263349,1753260646157,-460.0,0.00020821,2]
[374263351,1753260646167,-460.0,0.00020821,2]
[374263353,1753260646177,-3475.4,0.00020821,2]
[374263355,1753260646187,-460.0,0.00020821,2]
[374263357,1753260646196,-152.467607,0.00020821,2]
[374263359,1753260646206,-778.92,0.00020821,2]
[374263361,1753260646215,-381.26,0.00020821,2]
[374263363,1753260646225,-605.64437,0.00020821,2]
[374263365,1753260646234,-201.91259613,0.00020822,2]
[374263367,1753260646243,-679.0,0.00020822,2]
[374263370,1753260646253,-151.0,0.00020822,2]
[374263372,1753260646263,-500.0,0.00020822,2]
[374263374,1753260646272,-167.32440616,0.00020822,2]
[374263375,1753260646281,-500.0,0.00020822,2]
[374263378,1753260646292,-420.0,0.00020899,2]
[374263379,1753260646301,-151.0,0.000209,3]
[374263382,1753260646311,-2780.20238376,0.00020934,4]
[374263383,1753260646321,-151.0,0.00020935,2]
[374263386,1753260646331,-151.0,0.00020935,2]
[374263387,1753260646340,-151.0,0.00020935,2]
[374263389,1753260646349,-151.0,0.00020935,2]
[374263392,1753260646359,-460.0,0.00020972,2]
[374263394,1753260646369,-460.0,0.00020972,2]
[374263396,1753260646380,-460.0,0.00020972,2]
[374263398,1753260646390,-460.0,0.00020972,2]
[374263400,1753260646399,-460.0,0.00020972,2]
[374263402,1753260646409,-184.81,0.00020972,2]
[374263404,1753260646418,-460.0,0.00020972,2]
[374263419,1753260646428,-460.0,0.00021095,2]
[374263421,1753260646572,-412.74,0.00021095,2]
[374263423,1753260646582,-777.7,0.00021095,2]
[374263425,1753260646594,-151.611884,0.00021095,2]
[374263427,1753260646606,-151.0,0.00021095,2]
[374263429,1753260646617,-460.0,0.00021095,2]
[374263432,1753260646629,-260.51502917,0.00021095,2]
[374263434,1753260646640,-460.0,0.00021095,2]
[374263436,1753260646651,-460.0,0.00021095,2]
[374263438,1753260646660,-151.0,0.00021095,2]
[374263440,1753260646670,-151.0,0.00021095,2]
[374263442,1753260646680,-1219.44,0.00021095,2]
[374263444,1753260646689,-556.0,0.00021095,2]
[374263446,1753260646699,-1829.6,0.00021095,2]
[374263447,1753260646708,-216.28,0.00021095,2]
[374263449,1753260646717,-3282.15,0.00021095,2]
[374263451,1753260646727,-460.0,0.00021095,2]
[374263453,1753260646736,-213.02410789,0.00021095,2]
[374263455,1753260646746,-460.0,0.00021095,2]
[374263457,1753260646756,-564.16,0.00021095,2]
[374263459,1753260646766,-460.0,0.00021095,2]
[374263461,1753260646776,-460.0,0.00021095,2]
[374263463,1753260646785,-2621.57,0.00021095,2]
[374263465,1753260646794,-460.0,0.00021095,2]
[374263467,1753260646804,-460.0,0.00021095,2]
[374263469,1753260646814,-460.0,0.00021095,2]
[374263471,1753260646826,-1643.25,0.00021095,2]
[374263473,1753260646835,-1352.51,0.00021095,2]
[374263475,1753260646845,-1446.52,0.00021095,2]
[374263477,1753260646856,-489.77,0.00021095,2]
[374263479,1753260646865,-178.02,0.00021095,2]
[374263481,1753260646875,-460.0,0.00021095,2]
[374263483,1753260646884,-460.0,0.00021095,2]
[374263485,1753260646893,-644.71,0.00021095,2]
[374263487,1753260646902,-231.62528859,0.00021095,2]
[374263489,1753260646912,-1063.59,0.00021095,2]
[374263491,1753260646925,-1406.38,0.00021095,2]
[374263493,1753260646934,-554.27,0.00021095,2]
[374263494,1753260646943,-460.0,0.00021095,2]
[374263496,1753260646952,-460.0,0.00021095,2]
[374263498,1753260646962,-1061.1,0.00021095,2]
[374263500,1753260646971,-1928.69,0.00021095,2]
[374263503,1753260646981,-740.5,0.00021095,2]
[374263504,1753260646990,-460.0,0.00021095,2]
[374263506,1753260646998,-460.0,0.00021095,2]
[374263508,1753260647008,-471.12,0.00021095,2]
[374263510,1753260647017,-2139.67,0.00021095,2]
[374263512,1753260647030,-460.0,0.00021095,2]
[374263513,1753260647039,-4820.06,0.00021095,2]
[374263515,1753260647048,-460.0,0.00021095,2]
[374263517,1753260647057,-460.0,0.00021095,2]
[374263519,1753260647067,-3475.4,0.00021095,2]
[374263521,1753260647076,-460.0,0.00021095,2]
[374263523,1753260647086,-778.92,0.00021095,2]
[374263525,1753260647095,-679.0,0.00021096,2]
[374263527,1753260647104,-151.0,0.00021096,2]
[374263529,1753260647113,-500.0,0.00021096,2]
[374263531,1753260647123,-500.0,0.00021096,2]
[374263533,1753260647132,-179.9069,0.000211,3]
[374263535,1753260647141,-159.346112,0.000211,3]
[374263537,1753260647150,-360.0,0.00021103,2]
[374263539,1753260647158,-2780.20238376,0.00021141,4]
[374263541,1753260647167,-482.688402,0.00021164,2]
[374263542,1753260647176,-482.688402,0.00021164,2]
[374263544,1753260647186,-151.0,0.000212,4]
[374263546,1753260647195,-460.0,0.00021246,2]
[374263548,1753260647204,-460.0,0.00021246,2]
[374263550,1753260647212,-151.0,0.00021246,2]
[374263552,1753260647221,-151.0,0.00021246,2]
[374263554,1753260647230,-460.0,0.00021246,2]
[374263556,1753260647240,-460.0,0.00021246,2]
[374263558,1753260647249,-460.0,0.00021246,2]
[374263560,1753260647259,-151.11,0.00021246,2]
[374263562,1753260647269,-151.0,0.00021321,2]
[374263564,1753260647286,-151.0,0.00021321,2]
[374263566,1753260647296,-151.0,0.00021321,2]
[374263568,1753260647308,-151.0,0.00021321,2]
[374263570,1753260647319,-215.0738,0.00021321,2]
[374263572,1753260647328,-151.0,0.00021321,2]
[374263574,1753260647337,-151.0,0.00021321,2]
[374263576,1753260647346,-151.61683541,0.00021321,2]
[374263578,1753260647355,-151.0,0.00021321,2]
[374263580,1753260647364,-151.0,0.00021321,2]
[374263582,1753260647374,-151.0,0.00021321,2]
[374263584,1753260647383,-151.0,0.00021321,2]
[374263586,1753260647392,-151.0,0.00021321,2]
[374263588,1753260647402,-151.0,0.00021321,2]
[374263590,1753260647411,-151.0,0.00021321,2]
[374263592,1753260647420,-151.0,0.00021321,2]
[374263594,1753260647430,-151.0,0.00021321,2]
[374263596,1753260647439,-151.0,0.00021321,2]
[374263598,1753260647448,-151.0,0.00021321,2]
[374263600,1753260647458,-151.0,0.00021321,2]
[374263602,1753260647467,-151.0,0.00021321,2]
[374263604,1753260647477,-152.71936777,0.00021321,2]
[374263606,1753260647488,-3801.642,0.00021321,2]
[374263608,1753260647497,-151.0,0.00021321,2]
[374263610,1753260647513,-151.0,0.00021321,2]
[374263612,1753260647522,-151.98065924,0.00021321,2]
[374263614,1753260647532,-151.0,0.00021321,2]
[374263616,1753260647541,-151.0,0.00021321,2]
[374263618,1753260647550,-151.0,0.00021321,2]
[374263620,1753260647562,-151.0,0.00021321,2]
[374263622,1753260647573,-151.0,0.00021321,2]
[374263624,1753260647583,-151.0,0.00021321,2]
[374263626,1753260647592,-151.0,0.00021321,2]
[374263628,1753260647603,-151.0,0.00021321,2]
[374263630,1753260647612,-25000.0,0.00021321,2]
[374263632,1753260647623,-151.0,0.00021321,2]
[374263634,1753260647632,-151.0,0.00021321,2]
[374263636,1753260647643,-151.0,0.00021321,2]
[374263638,1753260647653,-15859.74815906,0.00021321,2]
[374263640,1753260647663,-151.0,0.00021321,2]
[374263642,1753260647671,-2780.20238376,0.00021348,5]
[374263644,1753260647681,-590.32530148,0.00021369,2]
[374263646,1753260647691,-777.7,0.00021369,2]
[374263648,1753260647700,-460.0,0.00021369,2]
[374263650,1753260647710,-645.755181,0.00021369,2]
[374263652,1753260647720,-645.755181,0.00021369,2]
[374263654,1753260647730,-460.0,0.00021369,2]
[374263656,1753260647740,-460.0,0.00021369,2]
[374263658,1753260647750,-151.0,0.00021369,2]
[374263660,1753260647760,-1219.44,0.00021369,2]
[374263662,1753260647769,-556.0,0.00021369,2]
[374263664,1753260647778,-1829.6,0.00021369,2]
[374263666,1753260647788,-3282.15,0.00021369,2]
[374263668,1753260647798,-460.0,0.00021369,2]
[374263670,1753260647806,-460.0,0.00021369,2]
[374263672,1753260647819,-564.16,0.00021369,2]
[374263674,1753260647828,-460.0,0.00021369,2]
[374263676,1753260647838,-460.0,0.00021369,2]
[374263678,1753260647847,-2621.57,0.00021369,2]
[374263680,1753260647856,-460.0,0.00021369,2]
[374263682,1753260647865,-242.4,0.00021369,2]
[374263684,1753260647875,-460.0,0.00021369,2]
[374263686,1753260647884,-1643.25,0.00021369,2]
[374263688,1753260647893,-1352.51,0.00021369,2]
[374263690,1753260647902,-1446.52,0.00021369,2]
[374263692,1753260647911,-489.77,0.00021369,2]
[374263694,1753260647920,-460.0,0.00021369,2]
[374263696,1753260647930,-460.0,0.00021369,2]
[374263698,1753260647939,-644.71,0.00021369,2]
[374263700,1753260647948,-1063.59,0.00021369,2]
[374263702,1753260647958,-1406.38,0.00021369,2]
[374263703,1753260647967,-460.0,0.00021369,2]
[374263705,1753260647976,-460.0,0.00021369,2]
[374263707,1753260647986,-1061.1,0.00021369,2]
[374263709,1753260647995,-1928.69,0.00021369,2]
[374263711,1753260648004,-740.5,0.00021369,2]
[374263713,1753260648014,-460.0,0.00021369,2]
[374263715,1753260648023,-460.0,0.00021369,2]
[374263717,1753260648033,-471.12,0.00021369,2]
[374263719,1753260648042,-2139.67,0.00021369,2]
[374263721,1753260648051,-555.41,0.00021369,2]
[374263723,1753260648061,-4820.06,0.00021369,2]
[374263725,1753260648072,-460.0,0.00021369,2]
[374263727,1753260648081,-151.0,0.00021369,2]
[374263729,1753260648091,-460.0,0.00021369,2]
[374263731,1753260648100,-3475.4,0.00021369,2]
[374263733,1753260648110,-460.0,0.00021369,2]
[374263735,1753260648120,-778.92,0.00021369,2]
[374263737,1753260648130,-679.0,0.0002137,2]
[374263739,1753260648139,-246.04954172,0.0002137,2]
[374263741,1753260648148,-500.0,0.0002137,2]
[374263743,1753260648158,-500.0,0.0002137,2]
[374263745,1753260648167,-3942.302754,0.00021376,2]
[374263747,1753260648177,-151.0,0.000214,4]
[374263749,1753260648186,-4088.1679559,0.00021431,2]
[374263750,1753260648196,-1634.78896283,0.00021486,2]
[374263752,1753260648205,-460.0,0.0002152,2]
[374263754,1753260648214,-460.0,0.0002152,2]
[374263756,1753260648224,-191.30406378,0.0002152,2]
[374263758,1753260648234,-153.3,0.0002152,2]
[374263760,1753260648244,-460.0,0.0002152,2]
[374263762,1753260648253,-1463.48791482,0.00021543,2]
[374263764,1753260648263,-2780.20238376,0.00021555,5]
[374263766,1753260648273,-180.38058028,0.00021584,2]
[374263768,1753260648282,-777.7,0.00021643,2]
[374263770,1753260648292,-460.0,0.00021643,2]
[374263772,1753260648301,-460.0,0.00021643,2]
[374263774,1753260648312,-460.0,0.00021643,2]
[374263776,1753260648323,-1219.44,0.00021643,2]
[374263778,1753260648334,-151.0,0.00021643,2]
[374263780,1753260648343,-151.0,0.00021643,2]
[374263782,1753260648354,-556.0,0.00021643,2]
[374263783,1753260648364,-151.426985,0.00021643,2]
[374263785,1753260648375,-1829.6,0.00021643,2]
[374263788,1753260648387,-151.0,0.00021643,2]
[374263789,1753260648397,-162.866,0.00021643,2]
[374263791,1753260648407,-151.0,0.00021643,2]
[374263793,1753260648416,-3282.15,0.00021643,2]
[374263795,1753260648426,-152.92453,0.00021643,2]
[374263797,1753260648436,-460.0,0.00021643,2]
[374263799,1753260648446,-151.0,0.00021643,2]
[374263801,1753260648456,-460.0,0.00021643,2]
[374263803,1753260648467,-564.16,0.00021643,2]
[374263805,1753260648478,-460.0,0.00021643,2]
[374263807,1753260648488,-460.0,0.00021643,2]
[374263809,1753260648499,-2621.57,0.00021643,2]
[374263811,1753260648510,-460.0,0.00021643,2]
[374263813,1753260648521,-151.0,0.00021643,2]
[374263815,1753260648531,-151.0,0.00021643,2]
[374263817,1753260648542,-460.0,0.00021643,2]
[374263819,1753260648553,-1643.25,0.00021643,2]
[374263821,1753260648772,-1352.51,0.00021643,2]
[374263823,1753260648783,-1446.52,0.00021643,2]
[374263825,1753260648793,-489.77,0.00021643,2]
[374263827,1753260648803,-460.0,0.00021643,2]
[374263829,1753260648813,-460.0,0.00021643,2]
[374263831,1753260648826,-644.71,0.00021643,2]
[374263833,1753260648836,-1063.59,0.00021643,2]
[374263835,1753260648846,-1406.38,0.00021643,2]
[374263837,1753260648866,-460.0,0.00021643,2]
[374263839,1753260648876,-460.0,0.00021643,2]
[374263841,1753260648886,-1061.1,0.00021643,2]
[374263843,1753260648895,-1928.69,0.00021643,2]
[374263845,1753260648905,-740.5,0.00021643,2]
[374263847,1753260648916,-460.0,0.00021643,2]
[374263849,1753260648926,-460.0,0.00021643,2]
[374263850,1753260648936,-471.12,0.00021643,2]
[374263852,1753260648947,-2139.67,0.00021643,2]
[374263854,1753260648956,-151.0,0.00021643,2]
[374263856,1753260648965,-151.0,0.00021643,2]
[374263858,1753260648974,-4820.06,0.00021643,2]
[374263860,1753260648983,-460.0,0.00021643,2]
[374263862,1753260648992,-460.0,0.00021643,2]
[374263864,1753260649001,-3475.4,0.00021643,2]
[374263866,1753260649011,-460.0,0.00021643,2]
[374263868,1753260649021,-778.92,0.00021643,2]
[374263870,1753260649031,-605.64437,0.00021643,2]
[374263872,1753260649040,-679.0,0.00021644,2]
[374263874,1753260649050,-500.0,0.00021644,2]
[374263876,1753260649059,-274.0,0.00021644,2]
[374263877,1753260649071,-460.0,0.00021651,2]
[374263879,1753260649080,-9546.26869596,0.00021706,2]
[374263881,1753260649091,-501.10459567,0.0002175,2]
[374263883,1753260649099,-2780.20238376,0.00021762,5]
[374263885,1753260649109,-460.0,0.00021794,2]
[374263887,1753260649118,-460.0,0.00021794,2]
[374263889,1753260649126,-460.0,0.00021794,2]
[374263891,1753260649136,-152.45592811,0.00021869,2]
[374263893,1753260649146,-25000.0,0.00021869,2]
[374263895,1753260649155,-170.6692493,0.00021869,2]
[374263897,1753260649164,-179.9069,0.0002187,2]
[374263899,1753260649173,-159.346112,0.0002187,2]
[374263901,1753260649183,-3985.84946799,0.00021875,2]
[374263903,1753260649192,-151.0,0.000219,4]
[374263905,1753260649203,-777.7,0.00021917,2]
[374263906,1753260649214,-151.0,0.00021917,2]
[374263908,1753260649224,-341.55848728,0.00021917,2]
[374263910,1753260649235,-460.0,0.00021917,2]
[374263912,1753260649246,-460.0,0.00021917,2]
[374263914,1753260649256,-151.0,0.00021917,2]
[374263916,1753260649265,-151.0,0.00021917,2]
[374263918,1753260649276,-1219.44,0.00021917,2]
[374263920,1753260649286,-556.0,0.00021917,2]
[374263922,1753260649295,-1829.6,0.00021917,2]
[374263923,1753260649305,-3282.15,0.00021917,2]
[374263924,1753260649317,-460.0,0.00021917,2]
[374263925,1753260649326,-460.0,0.00021917,2]
[374263926,1753260649335,-564.16,0.00021917,2]
[374263927,1753260649345,-460.0,0.00021917,2]
[374263928,1753260649354,-460.0,0.00021917,2]
[374263929,1753260649363,-2621.57,0.00021917,2]
[374263930,1753260649372,-460.0,0.00021917,2]
[374263931,1753260649381,-353.2,0.00021917,2]
[374263932,1753260649391,-1643.25,0.00021917,2]
[374263933,1753260649400,-1352.51,0.00021917,2]
[374263934,1753260649408,-1446.52,0.00021917,2]
[374263935,1753260649418,-489.77,0.00021917,2]
[374263936,1753260649426,-460.0,0.00021917,2]
[374263937,1753260649435,-460.0,0.00021917,2]
[374263938,1753260649445,-644.71,0.00021917,2]
[374263939,1753260649454,-1063.59,0.00021917,2]
[374263940,1753260649463,-1406.38,0.00021917,2]
[374263941,1753260649472,-460.0,0.00021917,2]
[374263942,1753260649482,-549.43,0.00021917,2]
[374263943,1753260649491,-1061.1,0.00021917,2]
[374263944,1753260649500,-1928.69,0.00021917,2]
[374263945,1753260649510,-740.5,0.00021917,2]
[374263946,1753260649519,-460.0,0.00021917,2]
[374263948,1753260649528,-460.0,0.00021917,2]
[374263950,1753260649537,-471.12,0.00021917,2]
[374263952,1753260649546,-2139.67,0.00021917,2]
[374263954,1753260649556,-4820.06,0.00021917,2]
[374263956,1753260649571,-252.94,0.00021917,2]
[374263958,1753260649580,-200.3,0.00021917,2]
[374263960,1753260649589,-500.0,0.00021917,2]
[374263962,1753260649599,-3475.4,0.00021917,2]
[374263964,1753260649609,-500.0,0.00021917,2]
[374263966,1753260649619,-500.0,0.00021917,2]
[374263968,1753260649628,-500.0,0.00021917,2]
[374263970,1753260649639,-500.0,0.00021917,2]
[374263972,1753260649648,-500.0,0.00021917,2]
[374263974,1753260649658,-500.0,0.00021917,2]
[374263976,1753260649668,-500.0,0.00021917,2]
[374263978,1753260649678,-500.0,0.00021917,2]
[374263980,1753260649687,-500.0,0.00021917,2]
[374263981,1753260649696,-500.0,0.00021917,2]
[374263983,1753260649706,-460.0,0.00021917,2]
[374263985,1753260649716,-778.92,0.00021917,2]
[374263987,1753260649725,-153.0,0.00021918,2]
[374263989,1753260649734,-153.0,0.00021918,2]
[374263991,1753260649743,-153.0,0.00021918,2]
[374263993,1753260649752,-153.0,0.00021918,2]
[374263995,1753260649761,-153.0,0.00021918,2]
[374263997,1753260649770,-153.0,0.00021918,2]
[374263999,1753260649778,-153.0,0.00021918,2]
[374264001,1753260649787,-153.0,0.00021918,2]
[374264003,1753260649795,-153.0,0.00021918,2]
[374264005,1753260649804,-153.0,0.00021918,2]
[374264006,1753260649813,-153.0,0.00021918,2]
[374264008,1753260649823,-153.0,0.00021918,2]
[374264010,1753260649832,-153.0,0.00021918,2]
[374264012,1753260649841,-153.0,0.00021918,2]
[374264014,1753260649850,-153.0,0.00021918,2]
[374264016,1753260649860,-153.0,0.00021918,2]
[374264018,1753260649869,-153.0,0.00021918,2]
[374264020,1753260649879,-153.0,0.00021918,2]
[374264034,1753260650001,-153.0,0.00021918,2]
[374264036,1753260650011,-153.0,0.00021918,2]
[374264038,1753260650020,-153.0,0.00021918,2]
[374264040,1753260650029,-153.0,0.00021918,2]
[374264042,1753260650038,-153.0,0.00021918,2]
[374264044,1753260650047,-153.0,0.00021918,2]
[374264046,1753260650056,-153.0,0.00021918,2]
[374264048,1753260650066,-153.0,0.00021918,2]
[374264050,1753260650075,-153.0,0.00021918,2]
[374264052,1753260650084,-153.0,0.00021918,2]
[374264054,1753260650093,-153.0,0.00021918,2]
[374264056,1753260650103,-153.0,0.00021918,2]
[374264058,1753260650112,-153.0,0.00021918,2]
[374264060,1753260650121,-153.0,0.00021918,2]
[374264062,1753260650130,-153.0,0.00021918,2]
[374264064,1753260650139,-153.0,0.00021918,2]
[374264066,1753260650148,-153.0,0.00021918,2]
[374264067,1753260650157,-153.0,0.00021918,2]
[374264069,1753260650166,-153.0,0.00021918,2]
[374264071,1753260650176,-153.0,0.00021918,2]
[374264073,1753260650185,-153.0,0.00021918,2]
[374264075,1753260650194,-153.0,0.00021918,2]
[374264077,1753260650203,-153.0,0.00021918,2]
[374264079,1753260650212,-153.0,0.00021918,2]
[374264081,1753260650221,-153.0,0.00021918,2]
[374264083,1753260650231,-153.0,0.00021918,2]
[374264085,1753260650240,-153.0,0.00021918,2]
[374264087,1753260650249,-153.0,0.00021918,2]
[374264089,1753260650258,-153.0,0.00021918,2]
[374264091,1753260650267,-153.0,0.00021918,2]
[374264093,1753260650277,-153.0,0.00021918,2]
[374264095,1753260650286,-153.0,0.00021918,2]
[374264097,1753260650295,-153.0,0.00021918,2]
[374264099,1753260650304,-153.0,0.00021918,2]
[374264101,1753260650316,-153.0,0.00021918,2]
[374264103,1753260650325,-153.0,0.00021918,2]
[374264105,1753260650335,-153.0,0.00021918,2]
[374264107,1753260650344,-153.0,0.00021918,2]
[374264109,1753260650353,-153.0,0.00021918,2]
[374264111,1753260650362,-153.0,0.00021918,2]
[374264113,1753260650371,-153.0,0.00021918,2]
[374264115,1753260650380,-153.0,0.00021918,2]
[374264117,1753260650390,-153.0,0.00021918,2]
[374264119,1753260650399,-153.0,0.00021918,2]
[374264121,1753260650407,-153.0,0.00021918,2]
[374264123,1753260650416,-153.0,0.00021918,2]
[374264125,1753260650426,-153.0,0.00021918,2]
[374264126,1753260650435,-153.0,0.00021918,2]
[374264128,1753260650444,-153.0,0.00021918,2]
[374264130,1753260650454,-153.0,0.00021918,2]
[374264132,1753260650463,-153.0,0.00021918,2]
[374264134,1753260650471,-153.0,0.00021918,2]
[374264136,1753260650480,-153.0,0.00021918,2]
[374264138,1753260650490,-153.0,0.00021918,2]
[374264140,1753260650499,-153.0,0.00021918,2]
[374264142,1753260650508,-153.0,0.00021918,2]
[374264144,1753260650519,-153.0,0.00021918,2]
[374264146,1753260650528,-153.0,0.00021918,2]
[374264148,1753260650538,-153.0,0.00021918,2]
[374264150,1753260650547,-153.0,0.00021918,2]
[374264152,1753260650557,-153.0,0.00021918,2]
[374264154,1753260650576,-153.0,0.00021918,2]
[374264156,1753260650585,-153.0,0.00021918,2]
[374264158,1753260650594,-153.0,0.00021918,2]
[374264160,1753260650604,-153.0,0.00021918,2]
[374264162,1753260650614,-153.0,0.00021918,2]
[374264164,1753260650624,-153.0,0.00021918,2]
[374264166,1753260650634,-153.0,0.00021918,2]
[374264168,1753260650643,-153.0,0.00021918,2]
[374264170,1753260650652,-153.0,0.00021918,2]
[374264172,1753260650661,-153.0,0.00021918,2]
[374264174,1753260650670,-153.0,0.00021918,2]
[374264176,1753260650680,-153.0,0.00021918,2]
[374264178,1753260650689,-153.0,0.00021918,2]
[374264180,1753260650699,-153.0,0.00021918,2]
[374264182,1753260650709,-153.0,0.00021918,2]
[374264184,1753260650719,-153.0,0.00021918,2]
[374264186,1753260650729,-153.0,0.00021918,2]
[374264188,1753260650738,-153.0,0.00021918,2]
[374264190,1753260650748,-153.0,0.00021918,2]
[374264192,1753260650758,-153.0,0.00021918,2]
[374264194,1753260650767,-153.0,0.00021918,2]
[374264196,1753260650776,-153.0,0.00021918,2]
[374264198,1753260650785,-153.0,0.00021918,2]
[374264200,1753260650795,-153.0,0.00021918,2]
[374264202,1753260650804,-153.0,0.00021918,2]
[374264204,1753260650813,-153.0,0.00021918,2]
[374264206,1753260650823,-153.0,0.00021918,2]
[374264208,1753260650833,-153.0,0.00021918,2]
[374264210,1753260650842,-153.0,0.00021918,2]
[374264212,1753260650852,-153.0,0.00021918,2]
[374264214,1753260650862,-272.39581,0.00021918,2]
[374264216,1753260650871,-272.39581,0.00021918,2]
[374264218,1753260650881,-272.39581,0.00021918,2]
[374264220,1753260650890,-272.39581,0.00021918,2]
[374264222,1753260650900,-200.0,0.00021918,2]
[374264224,1753260650909,-150.0,0.00021918,2]
[374264226,1753260650918,-679.0,0.00021918,2]